Workbook

Sheet Budget
A1: Timebehov
A2: Nuværende projekter | B2: Areal | C2: Lodsejere | D2: Medarbejdere | E2: Fase | F2: Timebehov | G2: Justeringsfaktor | H2: Timebehov justeret | I2: Note
A3: Projekt 2 | B3: =IFERROR(INDEX(Projektdata!$A$1:$D$184,MATCH(Budget!$A3,Projektdata!$A$1:$A$184,0),2),0) -> 22.39903313 | C3: =IFERROR(INDEX(Projektdata!$A$1:$D$184,MATCH(Budget!$A3,Projektdata!$A$1:$A$184,0),4),"-") -> 4 | D3: 2 | E3: RE+ | F3: =IF(E3="FU",ForUnd2(B3,C3,D3),IF(E3="FU+",ForUnd1(B3,C3,D3),IF(E3="RE",Real2(B3,C3,D3),IF(E3="RE+",Real1(B3,C3,D3),0)))) -> 146.6365193 | G3: 1 | H3: =F3*G3 -> 146.6365193
A4: Projekt 7 | B4: =IFERROR(INDEX(Projektdata!$A$1:$D$184,MATCH(Budget!$A4,Projektdata!$A$1:$A$184,0),2),0) -> 11.313715 | C4: =IFERROR(INDEX(Projektdata!$A$1:$D$184,MATCH(Budget!$A4,Projektdata!$A$1:$A$184,0),4),"-") -> 4 | D4: 2 | E4: FU+ | F4: =IF(E4="FU",ForUnd2(B4,C4,D4),IF(E4="FU+",ForUnd1(B4,C4,D4),IF(E4="RE",Real2(B4,C4,D4),IF(E4="RE+",Real1(B4,C4,D4),0)))) -> 350.1665775 | G4: 0.5 | H4: =F4*G4 -> 175.0832888 | I4: Næsten færdig
A5: Projekt 10 | B5: =IFERROR(INDEX(Projektdata!$A$1:$D$184,MATCH(Budget!$A5,Projektdata!$A$1:$A$184,0),2),0) -> 637.5858205 | C5: =IFERROR(INDEX(Projektdata!$A$1:$D$184,MATCH(Budget!$A5,Projektdata!$A$1:$A$184,0),4),"-") -> 65 | D5: 2 | E5: RE | F5: =IF(E5="FU",ForUnd2(B5,C5,D5),IF(E5="FU+",ForUnd1(B5,C5,D5),IF(E5="RE",Real2(B5,C5,D5),IF(E5="RE+",Real1(B5,C5,D5),0)))) -> 1608.930223 | G5: 1 | H5: 1608.930223
A6: Projekt 15 | B6: =IFERROR(INDEX(Projektdata!$A$1:$D$184,MATCH(Budget!$A6,Projektdata!$A$1:$A$184,0),2),0) -> 625.2172262 | C6: =IFERROR(INDEX(Projektdata!$A$1:$D$184,MATCH(Budget!$A6,Projektdata!$A$1:$A$184,0),4),"-") -> 42 | D6: 2 | E6: RE | F6: =IF(E6="FU",ForUnd2(B6,C6,D6),IF(E6="FU+",ForUnd1(B6,C6,D6),IF(E6="RE",Real2(B6,C6,D6),IF(E6="RE+",Real1(B6,C6,D6),0)))) -> 1490.956175 | G6: 1 | H6: 1490.956175
A7: Projekt 24 | B7: =IFERROR(INDEX(Projektdata!$A$1:$D$184,MATCH(Budget!$A7,Projektdata!$A$1:$A$184,0),2),0) -> 5.656497213 | C7: =IFERROR(INDEX(Projektdata!$A$1:$D$184,MATCH(Budget!$A7,Projektdata!$A$1:$A$184,0),4),"-") -> 4 | D7: 2 | E7: RE | F7: =IF(E7="FU",ForUnd2(B7,C7,D7),IF(E7="FU+",ForUnd1(B7,C7,D7),IF(E7="RE",Real2(B7,C7,D7),IF(E7="RE+",Real1(B7,C7,D7),0)))) -> 37.87864415 | G7: 1 | H7: 37.87864415
A8: Projekt 31 | B8: =IFERROR(INDEX(Projektdata!$A$1:$D$184,MATCH(Budget!$A8,Projektdata!$A$1:$A$184,0),2),0) -> 13.08590565 | C8: =IFERROR(INDEX(Projektdata!$A$1:$D$184,MATCH(Budget!$A8,Projektdata!$A$1:$A$184,0),4),"-") -> 4 | D8: 1 | E8: FU+ | F8: =IF(E8="FU",ForUnd2(B8,C8,D8),IF(E8="FU+",ForUnd1(B8,C8,D8),IF(E8="RE",Real2(B8,C8,D8),IF(E8="RE+",Real1(B8,C8,D8),0)))) -> 323.230198 | G8: 1.2 | H8: 387.8762376
B9: =IFERROR(INDEX(Projektdata!$A$1:$D$184,MATCH(Budget!$A9,Projektdata!$A$1:$A$184,0),2),0) -> 0 | C9: =IFERROR(INDEX(Projektdata!$A$1:$D$184,MATCH(Budget!$A9,Projektdata!$A$1:$A$184,0),4),"-") -> - | F9: =IF(E9="FU",ForUnd2(B9,C9,D9),IF(E9="FU+",ForUnd1(B9,C9,D9),IF(E9="RE",Real2(B9,C9,D9),IF(E9="RE+",Real1(B9,C9,D9),0)))) -> 0 | G9: 1 | H9: 0
B10: =IFERROR(INDEX(Projektdata!$A$1:$D$184,MATCH(Budget!$A10,Projektdata!$A$1:$A$184,0),2),0) -> 0 | C10: =IFERROR(INDEX(Projektdata!$A$1:$D$184,MATCH(Budget!$A10,Projektdata!$A$1:$A$184,0),4),"-") -> - | F10: =IF(E10="FU",ForUnd2(B10,C10,D10),IF(E10="FU+",ForUnd1(B10,C10,D10),IF(E10="RE",Real2(B10,C10,D10),IF(E10="RE+",Real1(B10,C10,D10),0)))) -> 0 | G10: 1 | H10: 0
B11: =IFERROR(INDEX(Projektdata!$A$1:$D$184,MATCH(Budget!$A11,Projektdata!$A$1:$A$184,0),2),0) -> 0 | C11: =IFERROR(INDEX(Projektdata!$A$1:$D$184,MATCH(Budget!$A11,Projektdata!$A$1:$A$184,0),4),"-") -> - | F11: =IF(E11="FU",ForUnd2(B11,C11,D11),IF(E11="FU+",ForUnd1(B11,C11,D11),IF(E11="RE",Real2(B11,C11,D11),IF(E11="RE+",Real1(B11,C11,D11),0)))) -> 0 | G11: 1 | H11: 0
B12: =IFERROR(INDEX(Projektdata!$A$1:$D$184,MATCH(Budget!$A12,Projektdata!$A$1:$A$184,0),2),0) -> 0 | C12: =IFERROR(INDEX(Projektdata!$A$1:$D$184,MATCH(Budget!$A12,Projektdata!$A$1:$A$184,0),4),"-") -> - | F12: =IF(E12="FU",ForUnd2(B12,C12,D12),IF(E12="FU+",ForUnd1(B12,C12,D12),IF(E12="RE",Real2(B12,C12,D12),IF(E12="RE+",Real1(B12,C12,D12),0)))) -> 0 | G12: 1 | H12: 0
B13: =SUM(B3:B12) -> 1315.258198 | H13: =SUM(H3:H12) -> 3847.361088
A16: Nye projekter - screeninger | B16: Areal | C16: Lodsejere | E16: Fase | F16: Timebehov | G16: Justeringsfaktor | H16: Timebehov justeret | I16: Note
A17: Projekt 1 | B17: =IFERROR(INDEX(Projektdata!$A$1:$D$184,MATCH(Budget!$A17,Projektdata!$A$1:$A$184,0),2),"-") -> 36.28388919 | C17: =IFERROR(INDEX(Projektdata!$A$1:$D$184,MATCH(Budget!$A17,Projektdata!$A$1:$A$184,0),4),"-") -> 8 | E17: SCR | F17: =IF(E17="SCRANS",100,IF(E17="SCR",50,0)) -> 50 | G17: 0.5 | H17: =F17*G17 -> 25
A18: Projekt 3 | B18: =IFERROR(INDEX(Projektdata!$A$1:$D$184,MATCH(Budget!$A18,Projektdata!$A$1:$A$184,0),2),"-") -> 65.08292169 | C18: =IFERROR(INDEX(Projektdata!$A$1:$D$184,MATCH(Budget!$A18,Projektdata!$A$1:$A$184,0),4),"-") -> 2 | E18: SCR | F18: =IF(E18="SCRANS",100,IF(E18="SCR",50,0)) -> 50 | G18: 1 | H18: 50
A19: Projekt 4 | B19: =IFERROR(INDEX(Projektdata!$A$1:$D$184,MATCH(Budget!$A19,Projektdata!$A$1:$A$184,0),2),"-") -> 290.3607273 | C19: =IFERROR(INDEX(Projektdata!$A$1:$D$184,MATCH(Budget!$A19,Projektdata!$A$1:$A$184,0),4),"-") -> 16 | E19: SCR | F19: 50 | G19: 0.4 | H19: 20
A20: Projekt 5 | B20: =IFERROR(INDEX(Projektdata!$A$1:$D$184,MATCH(Budget!$A20,Projektdata!$A$1:$A$184,0),2),"-") -> 326.0836547 | C20: =IFERROR(INDEX(Projektdata!$A$1:$D$184,MATCH(Budget!$A20,Projektdata!$A$1:$A$184,0),4),"-") -> 18 | E20: SCR | F20: 50 | G20: 1 | H20: 50
A21: Projekt 6 | B21: =IFERROR(INDEX(Projektdata!$A$1:$D$184,MATCH(Budget!$A21,Projektdata!$A$1:$A$184,0),2),"-") -> 66.83079236 | C21: =IFERROR(INDEX(Projektdata!$A$1:$D$184,MATCH(Budget!$A21,Projektdata!$A$1:$A$184,0),4),"-") -> 11 | E21: SCR | F21: 50 | G21: 1 | H21: 50
A22: Projekt 12 | B22: =IFERROR(INDEX(Projektdata!$A$1:$D$184,MATCH(Budget!$A22,Projektdata!$A$1:$A$184,0),2),"-") -> 856.1437049 | C22: =IFERROR(INDEX(Projektdata!$A$1:$D$184,MATCH(Budget!$A22,Projektdata!$A$1:$A$184,0),4),"-") -> 73 | E22: SCR | F22: 50 | G22: 1.5 | H22: 75
A23: Projekt 13 | B23: =IFERROR(INDEX(Projektdata!$A$1:$D$184,MATCH(Budget!$A23,Projektdata!$A$1:$A$184,0),2),"-") -> 152.9035142 | C23: =IFERROR(INDEX(Projektdata!$A$1:$D$184,MATCH(Budget!$A23,Projektdata!$A$1:$A$184,0),4),"-") -> 29 | E23: SCR | F23: 50 | G23: 1 | H23: 50
A24: Projekt 61 | B24: =IFERROR(INDEX(Projektdata!$A$1:$D$184,MATCH(Budget!$A24,Projektdata!$A$1:$A$184,0),2),"-") -> 415.046982 | C24: =IFERROR(INDEX(Projektdata!$A$1:$D$184,MATCH(Budget!$A24,Projektdata!$A$1:$A$184,0),4),"-") -> 32 | E24: SCR | F24: 50 | G24: 1.2 | H24: 60
A25: Projekt 62 | B25: =IFERROR(INDEX(Projektdata!$A$1:$D$184,MATCH(Budget!$A25,Projektdata!$A$1:$A$184,0),2),"-") -> 116.7164818 | C25: =IFERROR(INDEX(Projektdata!$A$1:$D$184,MATCH(Budget!$A25,Projektdata!$A$1:$A$184,0),4),"-") -> 14 | E25: SCR | F25: 50 | G25: 1 | H25: 50
A26: Projekt 63 | B26: =IFERROR(INDEX(Projektdata!$A$1:$D$184,MATCH(Budget!$A26,Projektdata!$A$1:$A$184,0),2),"-") -> 100.3603229 | C26: =IFERROR(INDEX(Projektdata!$A$1:$D$184,MATCH(Budget!$A26,Projektdata!$A$1:$A$184,0),4),"-") -> 10 | E26: SCR | F26: 50 | G26: 1 | H26: 50
B27: =IFERROR(INDEX(Projektdata!$A$1:$D$184,MATCH(Budget!$A27,Projektdata!$A$1:$A$184,0),2),"-") -> - | C27: =IFERROR(INDEX(Projektdata!$A$1:$D$184,MATCH(Budget!$A27,Projektdata!$A$1:$A$184,0),4),"-") -> - | F27: 0 | G27: 1 | H27: 0
B28: =IFERROR(INDEX(Projektdata!$A$1:$D$184,MATCH(Budget!$A28,Projektdata!$A$1:$A$184,0),2),"-") -> - | C28: =IFERROR(INDEX(Projektdata!$A$1:$D$184,MATCH(Budget!$A28,Projektdata!$A$1:$A$184,0),4),"-") -> - | F28: 0 | G28: 1 | H28: 0
B29: =IFERROR(INDEX(Projektdata!$A$1:$D$184,MATCH(Budget!$A29,Projektdata!$A$1:$A$184,0),2),"-") -> - | C29: =IFERROR(INDEX(Projektdata!$A$1:$D$184,MATCH(Budget!$A29,Projektdata!$A$1:$A$184,0),4),"-") -> - | F29: 0 | G29: 1 | H29: 0
B30: =IFERROR(INDEX(Projektdata!$A$1:$D$184,MATCH(Budget!$A30,Projektdata!$A$1:$A$184,0),2),"-") -> - | C30: =IFERROR(INDEX(Projektdata!$A$1:$D$184,MATCH(Budget!$A30,Projektdata!$A$1:$A$184,0),4),"-") -> - | F30: 0 | G30: 1 | H30: 0
B31: =SUM(B17:B30) -> 2425.812991 | H31: =SUM(H17:H30) -> 480
A33: Nye projekter | B33: Areal | C33: Lodsejere | E33: Fase | F33: Timebehov | G33: Justeringsfaktor | H33: Timebehov justeret | I33: Note
A34: Projekt 34 | B34: =IFERROR(INDEX(Projektdata!$A$1:$D$184,MATCH(Budget!$A34,Projektdata!$A$1:$A$184,0),2),0) -> 54.74712668 | C34: =IFERROR(INDEX(Projektdata!$A$1:$D$184,MATCH(Budget!$A34,Projektdata!$A$1:$A$184,0),4),"-") -> 14 | D34: 2 | E34: FU | F34: =IF(E34="KØ",20,IF(E34="FU",ForUnd2(B34,C34,D34),IF(E34="FU+",ForUnd1(B34,C34,D34),IF(E34="RE",Real2(B34,C34,D34),IF(E34="RE+",Real1(B34,C34,D34),0))))) -> 304 | G34: 1 | H34: =IFERROR(F34*G34,0) -> 304
A35: Projekt 35 | B35: =IFERROR(INDEX(Projektdata!$A$1:$D$184,MATCH(Budget!$A35,Projektdata!$A$1:$A$184,0),2),0) -> 146.6779474 | C35: =IFERROR(INDEX(Projektdata!$A$1:$D$184,MATCH(Budget!$A35,Projektdata!$A$1:$A$184,0),4),"-") -> 6 | D35: 2 | E35: FU | F35: =IF(E35="KØ",20,IF(E35="FU",ForUnd2(B35,C35,D35),IF(E35="FU+",ForUnd1(B35,C35,D35),IF(E35="RE",Real2(B35,C35,D35),IF(E35="RE+",Real1(B35,C35,D35),0))))) -> 184 | G35: 1.2 | H35: =IFERROR(F35*G35,0) -> 220.8
A36: Projekt 46 | B36: =IFERROR(INDEX(Projektdata!$A$1:$D$184,MATCH(Budget!$A36,Projektdata!$A$1:$A$184,0),2),0) -> 11.89840763 | C36: =IFERROR(INDEX(Projektdata!$A$1:$D$184,MATCH(Budget!$A36,Projektdata!$A$1:$A$184,0),4),"-") -> 5 | D36: 2 | E36: FU | F36: =IF(E36="KØ",20,IF(E36="FU",ForUnd2(B36,C36,D36),IF(E36="FU+",ForUnd1(B36,C36,D36),IF(E36="RE",Real2(B36,C36,D36),IF(E36="RE+",Real1(B36,C36,D36),0))))) -> 169 | G36: 1 | H36: 169 | I36: ca. 34 unikke lodsejere
A37: Projekt 47 | B37: =IFERROR(INDEX(Projektdata!$A$1:$D$184,MATCH(Budget!$A37,Projektdata!$A$1:$A$184,0),2),0) -> 83.58095442 | C37: =IFERROR(INDEX(Projektdata!$A$1:$D$184,MATCH(Budget!$A37,Projektdata!$A$1:$A$184,0),4),"-") -> 10 | D37: 2 | E37: FU | F37: =IF(E37="KØ",20,IF(E37="FU",ForUnd2(B37,C37,D37),IF(E37="FU+",ForUnd1(B37,C37,D37),IF(E37="RE",Real2(B37,C37,D37),IF(E37="RE+",Real1(B37,C37,D37),0))))) -> 244 | G37: 1 | H37: 244
A38: Projekt 58 | B38: =IFERROR(INDEX(Projektdata!$A$1:$D$184,MATCH(Budget!$A38,Projektdata!$A$1:$A$184,0),2),0) -> 234.3731481 | C38: =IFERROR(INDEX(Projektdata!$A$1:$D$184,MATCH(Budget!$A38,Projektdata!$A$1:$A$184,0),4),"-") -> 18 | D38: 2 | E38: FU | F38: =IF(E38="KØ",20,IF(E38="FU",ForUnd2(B38,C38,D38),IF(E38="FU+",ForUnd1(B38,C38,D38),IF(E38="RE",Real2(B38,C38,D38),IF(E38="RE+",Real1(B38,C38,D38),0))))) -> 364 | G38: 1.5 | H38: 546
A39: Projekt 65 | B39: =IFERROR(INDEX(Projektdata!$A$1:$D$184,MATCH(Budget!$A39,Projektdata!$A$1:$A$184,0),2),0) -> 44.808196 | C39: =IFERROR(INDEX(Projektdata!$A$1:$D$184,MATCH(Budget!$A39,Projektdata!$A$1:$A$184,0),4),"-") -> 6 | D39: 2 | E39: KØ | F39: =IF(E39="KØ",20,IF(E39="FU",ForUnd2(B39,C39,D39),IF(E39="FU+",ForUnd1(B39,C39,D39),IF(E39="RE",Real2(B39,C39,D39),IF(E39="RE+",Real1(B39,C39,D39),0))))) -> 20 | G39: 1 | H39: 20
A40: Projekt 67 | B40: =IFERROR(INDEX(Projektdata!$A$1:$D$184,MATCH(Budget!$A40,Projektdata!$A$1:$A$184,0),2),0) -> 100.6748345 | C40: =IFERROR(INDEX(Projektdata!$A$1:$D$184,MATCH(Budget!$A40,Projektdata!$A$1:$A$184,0),4),"-") -> 9 | D40: 2 | E40: KØ | F40: =IF(E40="KØ",20,IF(E40="FU",ForUnd2(B40,C40,D40),IF(E40="FU+",ForUnd1(B40,C40,D40),IF(E40="RE",Real2(B40,C40,D40),IF(E40="RE+",Real1(B40,C40,D40),0))))) -> 20 | G40: 1 | H40: 20
A41: Projekt 71 | B41: =IFERROR(INDEX(Projektdata!$A$1:$D$184,MATCH(Budget!$A41,Projektdata!$A$1:$A$184,0),2),0) -> 85.50613334 | C41: =IFERROR(INDEX(Projektdata!$A$1:$D$184,MATCH(Budget!$A41,Projektdata!$A$1:$A$184,0),4),"-") -> 11 | D41: 3 | E41: KØ | F41: =IF(E41="KØ",20,IF(E41="FU",ForUnd2(B41,C41,D41),IF(E41="FU+",ForUnd1(B41,C41,D41),IF(E41="RE",Real2(B41,C41,D41),IF(E41="RE+",Real1(B41,C41,D41),0))))) -> 20 | G41: 1 | H41: 20
A42: Projekt 76 | B42: =IFERROR(INDEX(Projektdata!$A$1:$D$184,MATCH(Budget!$A42,Projektdata!$A$1:$A$184,0),2),0) -> 258.599321 | C42: =IFERROR(INDEX(Projektdata!$A$1:$D$184,MATCH(Budget!$A42,Projektdata!$A$1:$A$184,0),4),"-") -> 28 | D42: 2 | E42: KØ | F42: =IF(E42="KØ",20,IF(E42="FU",ForUnd2(B42,C42,D42),IF(E42="FU+",ForUnd1(B42,C42,D42),IF(E42="RE",Real2(B42,C42,D42),IF(E42="RE+",Real1(B42,C42,D42),0))))) -> 20 | G42: 1.2 | H42: 24
B43: =IFERROR(INDEX(Projektdata!$A$1:$D$184,MATCH(Budget!$A43,Projektdata!$A$1:$A$184,0),2),0) -> 0 | C43: =IFERROR(INDEX(Projektdata!$A$1:$D$184,MATCH(Budget!$A43,Projektdata!$A$1:$A$184,0),4),"-") -> - | F43: =IF(E43="KØ",20,IF(E43="FU",ForUnd2(B43,C43,D43),IF(E43="FU+",ForUnd1(B43,C43,D43),IF(E43="RE",Real2(B43,C43,D43),IF(E43="RE+",Real1(B43,C43,D43),0))))) -> 0 | H43: 0
B44: =IFERROR(INDEX(Projektdata!$A$1:$D$184,MATCH(Budget!$A44,Projektdata!$A$1:$A$184,0),2),0) -> 0 | C44: =IFERROR(INDEX(Projektdata!$A$1:$D$184,MATCH(Budget!$A44,Projektdata!$A$1:$A$184,0),4),"-") -> - | F44: =IF(E44="KØ",20,IF(E44="FU",ForUnd2(B44,C44,D44),IF(E44="FU+",ForUnd1(B44,C44,D44),IF(E44="RE",Real2(B44,C44,D44),IF(E44="RE+",Real1(B44,C44,D44),0))))) -> 0 | H44: 0
B45: =IFERROR(INDEX(Projektdata!$A$1:$D$184,MATCH(Budget!$A45,Projektdata!$A$1:$A$184,0),2),0) -> 0 | C45: =IFERROR(INDEX(Projektdata!$A$1:$D$184,MATCH(Budget!$A45,Projektdata!$A$1:$A$184,0),4),"-") -> - | F45: =IF(E45="KØ",20,IF(E45="FU",ForUnd2(B45,C45,D45),IF(E45="FU+",ForUnd1(B45,C45,D45),IF(E45="RE",Real2(B45,C45,D45),IF(E45="RE+",Real1(B45,C45,D45),0))))) -> 0 | H45: 0
B46: =IFERROR(INDEX(Projektdata!$A$1:$D$184,MATCH(Budget!$A46,Projektdata!$A$1:$A$184,0),2),0) -> 0 | C46: =IFERROR(INDEX(Projektdata!$A$1:$D$184,MATCH(Budget!$A46,Projektdata!$A$1:$A$184,0),4),"-") -> - | F46: =IF(E46="KØ",20,IF(E46="FU",ForUnd2(B46,C46,D46),IF(E46="FU+",ForUnd1(B46,C46,D46),IF(E46="RE",Real2(B46,C46,D46),IF(E46="RE+",Real1(B46,C46,D46),0))))) -> 0 | H46: 0
B47: =SUM(B34:B46) -> 1020.866069 | H47: =SUM(H34:H46) -> 1567.8
A50: Årsnorm | B50: 1640
C51: I gang + planlagt
A52: Måltal - ha FU | B52: 1500 | C52: =SUMIF($E$3:$E$12,"FU",$B$3:$B$12)+SUMIF($E$34:$E$46,"FU",$B$34:$B$46)+SUMIF($E$3:$E$12,"FU+",$B$3:$B$12)+SUMIF($E$34:$E$46,"FU+",$B$34:$B$46) -> 555.6772048 | F52: =725/0.05 -> 14500
A53: Måltal - ha RE | B53: 500 | C53: =SUMIF($E$3:$E$12,"RE",$B$3:$B$12)+SUMIF($E$34:$E$46,"RE",$B$34:$B$46)+SUMIF($E$3:$E$12,"RE+",$B$3:$B$12)+SUMIF($E$34:$E$46,"RE+",$B$34:$B$46) -> 1290.858577
A55: Projektmedarbejdere | B55: Projektandel af årsværk | E55: Årstimetal
A56: Anne | B56: 0.5 | E56: =B56*$B$50 -> 820
A57: Anders | B57: 0.8 | E57: 1312
A58: Anette | B58: 0.1 | E58: 164
A59: Abelone | B59: 0.4 | E59: 656
A60: Abel | B60: 0.8 | E60: 1312
A61: Anker | B61: 0.1 | E61: 164
A62: Annie | B62: 0.5 | E62: 820 | F62: Behov | G62: Behov dækket %
E63: =SUM(E56:E62) -> 5248 | F63: =H13+H31+H47 -> 5895.161088 | G63: =ROUND(E63/F63*100,1) -> 89

Sheet Projektdata
A1: Projekt | B1: Areal | C1: Antal lodsejere | D1: Antal lodsejere > 0,5ha | E1: Antal ha pr. lodsejer
A2: Projekt 1 | B2: 36.28388919 | C2: 9 | D2: 8 | E2: =projektoversigt_arealerOgLodsejere3[[#This Row],[Areal]]/projektoversigt_arealerOgLodsejere3[[#This Row],[Antal lodsejere]] -> 4.031543243
A3: Projekt 2 | B3: 22.39903313 | C3: 9 | D3: 4 | E3: =projektoversigt_arealerOgLodsejere3[[#This Row],[Areal]]/projektoversigt_arealerOgLodsejere3[[#This Row],[Antal lodsejere]] -> 2.488781459
A4: Projekt 3 | B4: 65.08292169 | C4: 3 | D4: 2 | E4: =projektoversigt_arealerOgLodsejere3[[#This Row],[Areal]]/projektoversigt_arealerOgLodsejere3[[#This Row],[Antal lodsejere]] -> 21.69430723
A5: Projekt 4 | B5: 290.3607273 | C5: 20 | D5: 16 | E5: =projektoversigt_arealerOgLodsejere3[[#This Row],[Areal]]/projektoversigt_arealerOgLodsejere3[[#This Row],[Antal lodsejere]] -> 14.51803637
A6: Projekt 5 | B6: 326.0836547 | C6: 22 | D6: 18 | E6: =projektoversigt_arealerOgLodsejere3[[#This Row],[Areal]]/projektoversigt_arealerOgLodsejere3[[#This Row],[Antal lodsejere]] -> 14.8219843
A7: Projekt 6 | B7: 66.83079236 | C7: 14 | D7: 11 | E7: =projektoversigt_arealerOgLodsejere3[[#This Row],[Areal]]/projektoversigt_arealerOgLodsejere3[[#This Row],[Antal lodsejere]] -> 4.773628026
A8: Projekt 7 | B8: 11.313715 | C8: 5 | D8: 4 | E8: =projektoversigt_arealerOgLodsejere3[[#This Row],[Areal]]/projektoversigt_arealerOgLodsejere3[[#This Row],[Antal lodsejere]] -> 2.262743001
A9: Projekt 8 | B9: 96.11940551 | C9: 16 | D9: 12 | E9: =projektoversigt_arealerOgLodsejere3[[#This Row],[Areal]]/projektoversigt_arealerOgLodsejere3[[#This Row],[Antal lodsejere]] -> 6.007462844
A10: Projekt 9 | B10: 331.2321598 | C10: 19 | D10: 16 | E10: =projektoversigt_arealerOgLodsejere3[[#This Row],[Areal]]/projektoversigt_arealerOgLodsejere3[[#This Row],[Antal lodsejere]] -> 17.43327157
A11: Projekt 10 | B11: 637.5858205 | C11: 80 | D11: 65 | E11: =projektoversigt_arealerOgLodsejere3[[#This Row],[Areal]]/projektoversigt_arealerOgLodsejere3[[#This Row],[Antal lodsejere]] -> 7.969822756
A12: Projekt 11 | B12: 8.06817982 | C12: 5 | D12: 4 | E12: =projektoversigt_arealerOgLodsejere3[[#This Row],[Areal]]/projektoversigt_arealerOgLodsejere3[[#This Row],[Antal lodsejere]] -> 1.613635964
A13: Projekt 12 | B13: 856.1437049 | C13: 94 | D13: 73 | E13: =projektoversigt_arealerOgLodsejere3[[#This Row],[Areal]]/projektoversigt_arealerOgLodsejere3[[#This Row],[Antal lodsejere]] -> 9.107911755
A14: Projekt 13 | B14: 152.9035142 | C14: 37 | D14: 29 | E14: =projektoversigt_arealerOgLodsejere3[[#This Row],[Areal]]/projektoversigt_arealerOgLodsejere3[[#This Row],[Antal lodsejere]] -> 4.132527411
A15: Projekt 14 | B15: 79.75728013 | C15: 14 | D15: 10 | E15: =projektoversigt_arealerOgLodsejere3[[#This Row],[Areal]]/projektoversigt_arealerOgLodsejere3[[#This Row],[Antal lodsejere]] -> 5.696948581
A16: Projekt 15 | B16: 625.2172262 | C16: 71 | D16: 42 | E16: =projektoversigt_arealerOgLodsejere3[[#This Row],[Areal]]/projektoversigt_arealerOgLodsejere3[[#This Row],[Antal lodsejere]] -> 8.805876426
A17: Projekt 16 | B17: 3.977052857 | C17: 3 | D17: 3 | E17: =projektoversigt_arealerOgLodsejere3[[#This Row],[Areal]]/projektoversigt_arealerOgLodsejere3[[#This Row],[Antal lodsejere]] -> 1.325684286
A18: Projekt 17 | B18: 5.990686502 | C18: 5 | D18: 2 | E18: =projektoversigt_arealerOgLodsejere3[[#This Row],[Areal]]/projektoversigt_arealerOgLodsejere3[[#This Row],[Antal lodsejere]] -> 1.1981373
A19: Projekt 18 | B19: 75.15713859 | C19: 16 | D19: 13 | E19: =projektoversigt_arealerOgLodsejere3[[#This Row],[Areal]]/projektoversigt_arealerOgLodsejere3[[#This Row],[Antal lodsejere]] -> 4.697321162
A20: Projekt 19 | B20: 45.18599404 | C20: 21 | D20: 12 | E20: =projektoversigt_arealerOgLodsejere3[[#This Row],[Areal]]/projektoversigt_arealerOgLodsejere3[[#This Row],[Antal lodsejere]] -> 2.151714002
A21: Projekt 20 | B21: 52.68512738 | C21: 19 | D21: 15 | E21: =projektoversigt_arealerOgLodsejere3[[#This Row],[Areal]]/projektoversigt_arealerOgLodsejere3[[#This Row],[Antal lodsejere]] -> 2.772901441
A22: Projekt 21 | B22: 48.97770634 | C22: 12 | D22: 11 | E22: =projektoversigt_arealerOgLodsejere3[[#This Row],[Areal]]/projektoversigt_arealerOgLodsejere3[[#This Row],[Antal lodsejere]] -> 4.081475528
A23: Projekt 22 | B23: 182.3783115 | C23: 32 | D23: 23 | E23: =projektoversigt_arealerOgLodsejere3[[#This Row],[Areal]]/projektoversigt_arealerOgLodsejere3[[#This Row],[Antal lodsejere]] -> 5.699322235
A24: Projekt 23 | B24: 32.4139536 | C24: 8 | D24: 6 | E24: =projektoversigt_arealerOgLodsejere3[[#This Row],[Areal]]/projektoversigt_arealerOgLodsejere3[[#This Row],[Antal lodsejere]] -> 4.0517442
A25: Projekt 24 | B25: 5.656497213 | C25: 6 | D25: 4 | E25: =projektoversigt_arealerOgLodsejere3[[#This Row],[Areal]]/projektoversigt_arealerOgLodsejere3[[#This Row],[Antal lodsejere]] -> 0.9427495355
A26: Projekt 25 | B26: 67.89621711 | C26: 8 | D26: 7 | E26: =projektoversigt_arealerOgLodsejere3[[#This Row],[Areal]]/projektoversigt_arealerOgLodsejere3[[#This Row],[Antal lodsejere]] -> 8.487027139
A27: Projekt 26 | B27: 214.0980824 | C27: 5 | D27: 5 | E27: =projektoversigt_arealerOgLodsejere3[[#This Row],[Areal]]/projektoversigt_arealerOgLodsejere3[[#This Row],[Antal lodsejere]] -> 42.81961649
A28: Projekt 27 | B28: 77.22866319 | C28: 13 | D28: 11 | E28: =projektoversigt_arealerOgLodsejere3[[#This Row],[Areal]]/projektoversigt_arealerOgLodsejere3[[#This Row],[Antal lodsejere]] -> 5.940666399
A29: Projekt 28 | B29: 94.44245295 | C29: 24 | D29: 19 | E29: =projektoversigt_arealerOgLodsejere3[[#This Row],[Areal]]/projektoversigt_arealerOgLodsejere3[[#This Row],[Antal lodsejere]] -> 3.935102206
A30: Projekt 29 | B30: 306.7930136 | C30: 41 | D30: 19 | E30: =projektoversigt_arealerOgLodsejere3[[#This Row],[Areal]]/projektoversigt_arealerOgLodsejere3[[#This Row],[Antal lodsejere]] -> 7.482756429
A31: Projekt 30 | B31: 142.5293386 | C31: 15 | D31: 14 | E31: =projektoversigt_arealerOgLodsejere3[[#This Row],[Areal]]/projektoversigt_arealerOgLodsejere3[[#This Row],[Antal lodsejere]] -> 9.501955909
A32: Projekt 31 | B32: 13.08590565 | C32: 5 | D32: 4 | E32: =projektoversigt_arealerOgLodsejere3[[#This Row],[Areal]]/projektoversigt_arealerOgLodsejere3[[#This Row],[Antal lodsejere]] -> 2.61718113
A33: Projekt 32 | B33: 489.1679598 | C33: 54 | D33: 44 | E33: =projektoversigt_arealerOgLodsejere3[[#This Row],[Areal]]/projektoversigt_arealerOgLodsejere3[[#This Row],[Antal lodsejere]] -> 9.058665922
A34: Projekt 33 | B34: 134.653084 | C34: 15 | D34: 11 | E34: =projektoversigt_arealerOgLodsejere3[[#This Row],[Areal]]/projektoversigt_arealerOgLodsejere3[[#This Row],[Antal lodsejere]] -> 8.976872267
A35: Projekt 34 | B35: 54.74712668 | C35: 14 | D35: 14 | E35: =projektoversigt_arealerOgLodsejere3[[#This Row],[Areal]]/projektoversigt_arealerOgLodsejere3[[#This Row],[Antal lodsejere]] -> 3.910509049
A36: Projekt 35 | B36: 146.6779474 | C36: 8 | D36: 6 | E36: =projektoversigt_arealerOgLodsejere3[[#This Row],[Areal]]/projektoversigt_arealerOgLodsejere3[[#This Row],[Antal lodsejere]] -> 18.33474342
A37: Projekt 36 | B37: 79.57423107 | C37: 7 | D37: 4 | E37: =projektoversigt_arealerOgLodsejere3[[#This Row],[Areal]]/projektoversigt_arealerOgLodsejere3[[#This Row],[Antal lodsejere]] -> 11.3677473
A38: Projekt 37 | B38: 53.64198373 | C38: 8 | D38: 6 | E38: =projektoversigt_arealerOgLodsejere3[[#This Row],[Areal]]/projektoversigt_arealerOgLodsejere3[[#This Row],[Antal lodsejere]] -> 6.705247966
A39: Projekt 38 | B39: 1.737988492 | C39: 1 | D39: 1 | E39: =projektoversigt_arealerOgLodsejere3[[#This Row],[Areal]]/projektoversigt_arealerOgLodsejere3[[#This Row],[Antal lodsejere]] -> 1.737988492
A40: Projekt 39 | B40: 154.5617553 | C40: 26 | D40: 18 | E40: =projektoversigt_arealerOgLodsejere3[[#This Row],[Areal]]/projektoversigt_arealerOgLodsejere3[[#This Row],[Antal lodsejere]] -> 5.944682895
A41: Projekt 40 | B41: 46.20239077 | C41: 13 | D41: 10 | E41: =projektoversigt_arealerOgLodsejere3[[#This Row],[Areal]]/projektoversigt_arealerOgLodsejere3[[#This Row],[Antal lodsejere]] -> 3.554030059
A42: Projekt 41 | B42: 691.2019131 | C42: 30 | D42: 28 | E42: =projektoversigt_arealerOgLodsejere3[[#This Row],[Areal]]/projektoversigt_arealerOgLodsejere3[[#This Row],[Antal lodsejere]] -> 23.04006377
A43: Projekt 42 | B43: 1110.350854 | C43: 53 | D43: 51 | E43: =projektoversigt_arealerOgLodsejere3[[#This Row],[Areal]]/projektoversigt_arealerOgLodsejere3[[#This Row],[Antal lodsejere]] -> 20.95001611
A44: Projekt 43 | B44: 280.2970994 | C44: 37 | D44: 29 | E44: =projektoversigt_arealerOgLodsejere3[[#This Row],[Areal]]/projektoversigt_arealerOgLodsejere3[[#This Row],[Antal lodsejere]] -> 7.575597281
A45: Projekt 44 | B45: 257.8825773 | C45: 45 | D45: 36 | E45: =projektoversigt_arealerOgLodsejere3[[#This Row],[Areal]]/projektoversigt_arealerOgLodsejere3[[#This Row],[Antal lodsejere]] -> 5.73072394
A46: Projekt 45 | B46: 27.68006206 | C46: 5 | D46: 4 | E46: =projektoversigt_arealerOgLodsejere3[[#This Row],[Areal]]/projektoversigt_arealerOgLodsejere3[[#This Row],[Antal lodsejere]] -> 5.536012412
A47: Projekt 46 | B47: 11.89840763 | C47: 7 | D47: 5 | E47: =projektoversigt_arealerOgLodsejere3[[#This Row],[Areal]]/projektoversigt_arealerOgLodsejere3[[#This Row],[Antal lodsejere]] -> 1.699772518
A48: Projekt 47 | B48: 83.58095442 | C48: 13 | D48: 10 | E48: =projektoversigt_arealerOgLodsejere3[[#This Row],[Areal]]/projektoversigt_arealerOgLodsejere3[[#This Row],[Antal lodsejere]] -> 6.429304186
A49: Projekt 48 | B49: 24.75069382 | C49: 13 | D49: 10 | E49: =projektoversigt_arealerOgLodsejere3[[#This Row],[Areal]]/projektoversigt_arealerOgLodsejere3[[#This Row],[Antal lodsejere]] -> 1.903899525
A50: Projekt 49 | B50: 156.8013184 | C50: 29 | D50: 21 | E50: =projektoversigt_arealerOgLodsejere3[[#This Row],[Areal]]/projektoversigt_arealerOgLodsejere3[[#This Row],[Antal lodsejere]] -> 5.406942013
A51: Projekt 50 | B51: 0.6018991638 | C51: 1 | D51: 1 | E51: =projektoversigt_arealerOgLodsejere3[[#This Row],[Areal]]/projektoversigt_arealerOgLodsejere3[[#This Row],[Antal lodsejere]] -> 0.6018991638
A52: Projekt 51 | B52: 157.9426503 | C52: 13 | D52: 10 | E52: =projektoversigt_arealerOgLodsejere3[[#This Row],[Areal]]/projektoversigt_arealerOgLodsejere3[[#This Row],[Antal lodsejere]] -> 12.14943464
A53: Projekt 52 | B53: 94.36557251 | C53: 9 | D53: 5 | E53: =projektoversigt_arealerOgLodsejere3[[#This Row],[Areal]]/projektoversigt_arealerOgLodsejere3[[#This Row],[Antal lodsejere]] -> 10.48506361
A54: Projekt 53 | B54: 357.3751052 | C54: 50 | D54: 43 | E54: =projektoversigt_arealerOgLodsejere3[[#This Row],[Areal]]/projektoversigt_arealerOgLodsejere3[[#This Row],[Antal lodsejere]] -> 7.147502105
A55: Projekt 54 | B55: 79.97432754 | C55: 10 | D55: 8 | E55: =projektoversigt_arealerOgLodsejere3[[#This Row],[Areal]]/projektoversigt_arealerOgLodsejere3[[#This Row],[Antal lodsejere]] -> 7.997432754
A56: Projekt 55 | B56: 638.3678072 | C56: 63 | D56: 48 | E56: =projektoversigt_arealerOgLodsejere3[[#This Row],[Areal]]/projektoversigt_arealerOgLodsejere3[[#This Row],[Antal lodsejere]] -> 10.13282234
A57: Projekt 56 | B57: 189.0101218 | C57: 15 | D57: 10 | E57: =projektoversigt_arealerOgLodsejere3[[#This Row],[Areal]]/projektoversigt_arealerOgLodsejere3[[#This Row],[Antal lodsejere]] -> 12.60067479
A58: Projekt 57 | B58: 227.9322576 | C58: 14 | D58: 13 | E58: =projektoversigt_arealerOgLodsejere3[[#This Row],[Areal]]/projektoversigt_arealerOgLodsejere3[[#This Row],[Antal lodsejere]] -> 16.28087554
A59: Projekt 58 | B59: 234.3731481 | C59: 21 | D59: 18 | E59: =projektoversigt_arealerOgLodsejere3[[#This Row],[Areal]]/projektoversigt_arealerOgLodsejere3[[#This Row],[Antal lodsejere]] -> 11.1606261
A60: Projekt 59 | B60: 1297.677074 | C60: 34 | D60: 31 | E60: =projektoversigt_arealerOgLodsejere3[[#This Row],[Areal]]/projektoversigt_arealerOgLodsejere3[[#This Row],[Antal lodsejere]] -> 38.16697275
A61: Projekt 60 | B61: 90.05973478 | C61: 11 | D61: 10 | E61: =projektoversigt_arealerOgLodsejere3[[#This Row],[Areal]]/projektoversigt_arealerOgLodsejere3[[#This Row],[Antal lodsejere]] -> 8.187248616
A62: Projekt 61 | B62: 415.046982 | C62: 40 | D62: 32 | E62: =projektoversigt_arealerOgLodsejere3[[#This Row],[Areal]]/projektoversigt_arealerOgLodsejere3[[#This Row],[Antal lodsejere]] -> 10.37617455
A63: Projekt 62 | B63: 116.7164818 | C63: 15 | D63: 14 | E63: =projektoversigt_arealerOgLodsejere3[[#This Row],[Areal]]/projektoversigt_arealerOgLodsejere3[[#This Row],[Antal lodsejere]] -> 7.781098784
A64: Projekt 63 | B64: 100.3603229 | C64: 11 | D64: 10 | E64: =projektoversigt_arealerOgLodsejere3[[#This Row],[Areal]]/projektoversigt_arealerOgLodsejere3[[#This Row],[Antal lodsejere]] -> 9.12366572
A65: Projekt 64 | B65: 42.91046942 | C65: 11 | D65: 10 | E65: =projektoversigt_arealerOgLodsejere3[[#This Row],[Areal]]/projektoversigt_arealerOgLodsejere3[[#This Row],[Antal lodsejere]] -> 3.900951765
A66: Projekt 65 | B66: 44.808196 | C66: 8 | D66: 6 | E66: =projektoversigt_arealerOgLodsejere3[[#This Row],[Areal]]/projektoversigt_arealerOgLodsejere3[[#This Row],[Antal lodsejere]] -> 5.6010245
A67: Projekt 66 | B67: 7.208206433 | C67: 2 | D67: 1 | E67: =projektoversigt_arealerOgLodsejere3[[#This Row],[Areal]]/projektoversigt_arealerOgLodsejere3[[#This Row],[Antal lodsejere]] -> 3.604103217
A68: Projekt 67 | B68: 100.6748345 | C68: 13 | D68: 9 | E68: =projektoversigt_arealerOgLodsejere3[[#This Row],[Areal]]/projektoversigt_arealerOgLodsejere3[[#This Row],[Antal lodsejere]] -> 7.74421804
A69: Projekt 68 | B69: 824.2618336 | C69: 44 | D69: 39 | E69: =projektoversigt_arealerOgLodsejere3[[#This Row],[Areal]]/projektoversigt_arealerOgLodsejere3[[#This Row],[Antal lodsejere]] -> 18.73322349
A70: Projekt 69 | B70: 1694.412627 | C70: 56 | D70: 51 | E70: =projektoversigt_arealerOgLodsejere3[[#This Row],[Areal]]/projektoversigt_arealerOgLodsejere3[[#This Row],[Antal lodsejere]] -> 30.25736834
A71: Projekt 70 | B71: 101.6343816 | C71: 20 | D71: 15 | E71: =projektoversigt_arealerOgLodsejere3[[#This Row],[Areal]]/projektoversigt_arealerOgLodsejere3[[#This Row],[Antal lodsejere]] -> 5.081719082
A72: Projekt 71 | B72: 85.50613334 | C72: 14 | D72: 11 | E72: =projektoversigt_arealerOgLodsejere3[[#This Row],[Areal]]/projektoversigt_arealerOgLodsejere3[[#This Row],[Antal lodsejere]] -> 6.107580953
A73: Projekt 72 | B73: 1259.516889 | C73: 87 | D73: 50 | E73: =projektoversigt_arealerOgLodsejere3[[#This Row],[Areal]]/projektoversigt_arealerOgLodsejere3[[#This Row],[Antal lodsejere]] -> 14.47720562
A74: Projekt 73 | B74: 1016.696887 | C74: 133 | D74: 111 | E74: =projektoversigt_arealerOgLodsejere3[[#This Row],[Areal]]/projektoversigt_arealerOgLodsejere3[[#This Row],[Antal lodsejere]] -> 7.644337494
A75: Projekt 74 | B75: 3.229795413 | C75: 3 | D75: 1 | E75: =projektoversigt_arealerOgLodsejere3[[#This Row],[Areal]]/projektoversigt_arealerOgLodsejere3[[#This Row],[Antal lodsejere]] -> 1.076598471
A76: Projekt 75 | B76: 224.383791 | C76: 25 | D76: 23 | E76: =projektoversigt_arealerOgLodsejere3[[#This Row],[Areal]]/projektoversigt_arealerOgLodsejere3[[#This Row],[Antal lodsejere]] -> 8.97535164
A77: Projekt 76 | B77: 258.599321 | C77: 42 | D77: 28 | E77: =projektoversigt_arealerOgLodsejere3[[#This Row],[Areal]]/projektoversigt_arealerOgLodsejere3[[#This Row],[Antal lodsejere]] -> 6.15712669
A78: Projekt 77 | B78: 215.6853207 | C78: 14 | D78: 11 | E78: =projektoversigt_arealerOgLodsejere3[[#This Row],[Areal]]/projektoversigt_arealerOgLodsejere3[[#This Row],[Antal lodsejere]] -> 15.40609434

Sheet Opslag
A1: Faser
A2: FU
A3: FU+
A4: RE
A5: RE+
A6: SCR
A7: SCRANS
A8: KØ

Sheet FU+
B1: Forundersøgelse
A2: Projekt | B2: Med TFU
A3: Areal | B3: 1000 | C3: 500 | D3: 250 | E3: 100 | F3: 75 | G3: 50 | H3: 25 | I3: 10 | J3: 5
A4: Lodsejere pr ha | B4: 0.07 | C4: 0.08 | D4: 0.1 | E4: 0.125 | F4: 0.15 | G4: 0.2 | H4: 0.3 | I4: 0.5 | J4: 0.5
A5: Lodsejere | B5: =B4*B3 -> 70 | C5: =C4*C3 -> 40 | D5: 25 | E5: 12.5 | F5: 11.25 | G5: 10 | H5: 7.5 | I5: 5 | J5: 2.5
A6: Medarbejdere | B6: 2 | C6: 2 | D6: 2 | E6: 2 | F6: 2 | G6: 2 | H6: 2 | I6: 2 | J6: 2
A8: TFU | B8: =IF(ISBLANK(B$4),0,4*B3+20) -> 4020 | C8: =IF(ISBLANK(C$4),0,4*C3+20) -> 2020 | D8: 1020 | E8: 420 | F8: 320 | G8: 220 | H8: 120 | I8: 60 | J8: 40
A9: EFU | B9: =IF(ISBLANK(B$4),0,5*B5+40) -> 390 | C9: =IF(ISBLANK(C$4),0,5*C5+40) -> 240 | D9: 165 | E9: 102.5 | F9: 96.25 | G9: 90 | H9: 77.5 | I9: 65 | J9: 52.5
A10: Feltmålinger | B10: =IF(ISBLANK(B$4),0,2.5*B3+30*B6) -> 2560 | C10: =IF(ISBLANK(C$4),0,2.5*C3+30*C6) -> 1310 | D10: 685 | E10: 310 | F10: 247.5 | G10: 185 | H10: 122.5 | I10: 85 | J10: 72.5
A11: Modeller, beregninger | B11: =IF(ISBLANK(B$4),0,2*B3+20) -> 2020 | C11: =IF(ISBLANK(C$4),0,2*C3+20) -> 1020 | D11: 520 | E11: 220 | F11: 170 | G11: 120 | H11: 70 | I11: 40 | J11: 30
A12: Lodsejerkontakt | B12: =IF(ISBLANK(B$4),0,5*B5*B6) -> 700 | C12: =IF(ISBLANK(C$4),0,5*C5*C6) -> 400 | D12: 250 | E12: 125 | F12: 112.5 | G12: 100 | H12: 75 | I12: 50 | J12: 25
A13: KS | B13: =IF(ISBLANK(B$4),0,7*B6) -> 14 | C13: =IF(ISBLANK(C$4),0,7*C6) -> 14 | D13: 14 | E13: 14 | F13: 14 | G13: 14 | H13: 14 | I13: 14 | J13: 14
A14: Afrapportering | B14: =IF(ISBLANK(B$4),0,15*B6+10) -> 40 | C14: =IF(ISBLANK(C$4),0,15*C6+10) -> 40 | D14: 40 | E14: 40 | F14: 40 | G14: 40 | H14: 40 | I14: 40 | J14: 40
B15: =SUM(B8:B14) -> 9744 | C15: =SUM(C8:C14) -> 5044 | D15: 2694 | E15: 1231.5 | F15: 1000.25 | G15: 769 | H15: 519 | I15: 354 | J15: 274
A16: timer pr. ha | B16: =B15/B3 -> 9.744 | C16: =C15/C3 -> 10.088 | D16: 10.776 | E16: 12.315 | F16: 13.33666667 | G16: 15.38 | H16: 20.76 | I16: 35.4 | J16: 54.8
A21: a | B21: 66.736
A22: b | B22: -0.321

Sheet FU-
B1: Forundersøgelse
A2: Projekt | B2: Uden TFU
A3: Areal | B3: 1000 | C3: 500 | D3: 250 | E3: 100 | F3: 75 | G3: 50 | H3: 25 | I3: 10 | J3: 5
A4: Lodsejere pr ha | B4: 0.07 | C4: 0.08 | D4: 0.1 | E4: 0.125 | F4: 0.15 | G4: 0.2 | H4: 0.3 | I4: 0.5 | J4: 0.5
A5: Lodsejere | B5: =B4*B3 -> 70 | C5: =C4*C3 -> 40 | D5: 25 | E5: 12.5 | F5: 11.25 | G5: 10 | H5: 7.5 | I5: 5 | J5: 2.5
A6: Medarbejdere | B6: 2 | C6: 2 | D6: 2 | E6: 2 | F6: 2 | G6: 2 | H6: 2 | I6: 2 | J6: 2
A8: TFU | B8: - | C8: - | D8: - | E8: - | F8: - | G8: - | H8: - | I8: - | J8: -
A9: EFU | B9: =IF(ISBLANK(B$4),0,5*B5+40) -> 390 | C9: =IF(ISBLANK(C$4),0,5*C5+40) -> 240 | D9: 165 | E9: 102.5 | F9: 96.25 | G9: 90 | H9: 77.5 | I9: 65 | J9: 52.5
A10: Feltmålinger | B10: - | C10: - | D10: - | E10: - | F10: - | G10: - | H10: - | I10: - | J10: -
A11: Modeller, beregninger | B11: - | C11: - | D11: - | E11: - | F11: - | G11: - | H11: - | I11: - | J11: -
A12: Lodsejerkontakt | B12: =IF(ISBLANK(B$4),0,5*B5*B6) -> 700 | C12: =IF(ISBLANK(C$4),0,5*C5*C6) -> 400 | D12: 250 | E12: 125 | F12: 112.5 | G12: 100 | H12: 75 | I12: 50 | J12: 25
A13: KS | B13: =IF(ISBLANK(B$4),0,7*B6) -> 14 | C13: =IF(ISBLANK(C$4),0,7*C6) -> 14 | D13: 14 | E13: 14 | F13: 14 | G13: 14 | H13: 14 | I13: 14 | J13: 14
A14: Afrapportering | B14: =IF(ISBLANK(B$4),0,15*B6+10) -> 40 | C14: =IF(ISBLANK(C$4),0,15*C6+10) -> 40 | D14: 40 | E14: 40 | F14: 40 | G14: 40 | H14: 40 | I14: 40 | J14: 40
B15: =SUM(B8:B14) -> 1144 | C15: =SUM(C8:C14) -> 694 | D15: 469 | E15: 281.5 | F15: 262.75 | G15: 244 | H15: 206.5 | I15: 169 | J15: 131.5
A16: timer pr. ha | B16: =B15/B3 -> 1.144 | C16: =C15/C3 -> 1.388 | D16: 1.876 | E16: 2.815 | F16: 3.503333333 | G16: 4.88 | H16: 8.26 | I16: 16.9 | J16: 26.3
A21: a | B21: 60.426
A22: b | B22: -0.615

Sheet RE+
B1: Realisering
B2: Med detailprojekt
A3: Areal | B3: 1000 | C3: 500 | D3: 250 | E3: 100 | F3: 75 | G3: 50 | H3: 25 | I3: 10 | J3: 5
A4: Lodsejere pr ha | B4: 0.07 | C4: 0.08 | D4: 0.1 | E4: 0.125 | F4: 0.15 | G4: 0.2 | H4: 0.3 | I4: 0.5 | J4: 0.5
A5: Lodsejere | B5: =B4*B3 -> 70 | C5: =C4*C3 -> 40 | D5: 25 | E5: 12.5 | F5: 11.25 | G5: 10 | H5: 7.5 | I5: 5 | J5: 2.5
A6: Medarbejdere | B6: 2 | C6: 2 | D6: 2 | E6: 2 | F6: 2 | G6: 2 | H6: 2 | I6: 2 | J6: 2
A8: Detailprojekt | B8: =B3+20 -> 1020 | C8: =C3+20 -> 520 | D8: 270 | E8: 120 | F8: 95 | G8: 70 | H8: 45 | I8: 30 | J8: 25
A9: Udbudsmateriale | B9: =0.5*B3+20 -> 520 | C9: =0.5*C3+20 -> 270 | D9: 145 | E9: 70 | F9: 57.5 | G9: 45 | H9: 32.5 | I9: 25 | J9: 22.5
A10: Besigtigelse og licitation | B10: =0.1*B3+10 -> 110 | C10: =0.1*C3+10 -> 60 | D10: 35 | E10: 20 | F10: 17.5 | G10: 15 | H10: 12.5 | I10: 11 | J10: 10.5
A11: Lodsejeraftaler | B11: =B5*2*B6 -> 280 | C11: =C5*2*C6 -> 160 | D11: 100 | E11: 50 | F11: 45 | G11: 40 | H11: 30 | I11: 20 | J11: 10
A12: Anlæg og tilsyn | B12: =B3*2 -> 2000 | C12: =C3*2 -> 1000 | D12: 500 | E12: 200 | F12: 150 | G12: 100 | H12: 50 | I12: 20 | J12: 10
B15: =SUM(B8:B14) -> 3930 | C15: =SUM(C8:C14) -> 2010 | D15: 1050 | E15: 460 | F15: 365 | G15: 270 | H15: 170 | I15: 106 | J15: 78
A16: timer pr. ha | B16: =B15/B3 -> 3.93 | C16: =C15/C3 -> 4.02 | D16: 4.2 | E16: 4.6 | F16: 4.866666667 | G16: 5.4 | H16: 6.8 | I16: 10.6 | J16: 15.6
A21: a | B21: 16.222
A22: b | B22: -0.24

Sheet RE-
B1: Realisering
B2: Med detailprojekt
A3: Areal | B3: 1000 | C3: 500 | D3: 250 | E3: 100 | F3: 75 | G3: 50 | H3: 25 | I3: 10 | J3: 5
A4: Lodsejere pr ha | B4: 0.07 | C4: 0.08 | D4: 0.1 | E4: 0.125 | F4: 0.15 | G4: 0.2 | H4: 0.3 | I4: 0.5 | J4: 0.5
A5: Lodsejere | B5: =B4*B3 -> 70 | C5: =C4*C3 -> 40 | D5: 25 | E5: 12.5 | F5: 11.25 | G5: 10 | H5: 7.5 | I5: 5 | J5: 2.5
A6: Medarbejdere | B6: 2 | C6: 2 | D6: 2 | E6: 2 | F6: 2 | G6: 2 | H6: 2 | I6: 2 | J6: 2
A8: Detailprojekt | B8: - | C8: - | D8: - | E8: - | F8: - | G8: - | H8: - | I8: - | J8: -
A9: Udbudsmateriale | B9: - | C9: - | D9: - | E9: - | F9: - | G9: - | H9: - | I9: - | J9: -
A10: Besigtigelse og licitation | B10: =0.1*B3+10 -> 110 | C10: =0.1*C3+10 -> 60 | D10: 35 | E10: 20 | F10: 17.5 | G10: 15 | H10: 12.5 | I10: 11 | J10: 10.5
A11: Lodsejeraftaler | B11: =B5*2*B6 -> 280 | C11: =C5*2*C6 -> 160 | D11: 100 | E11: 50 | F11: 45 | G11: 40 | H11: 30 | I11: 20 | J11: 10
A12: Anlæg og tilsyn | B12: =B3*2 -> 2000 | C12: =C3*2 -> 1000 | D12: 500 | E12: 200 | F12: 150 | G12: 100 | H12: 50 | I12: 20 | J12: 10
B15: =SUM(B8:B14) -> 2390 | C15: =SUM(C8:C14) -> 1220 | D15: 635 | E15: 270 | F15: 212.5 | G15: 155 | H15: 92.5 | I15: 51 | J15: 30.5
A16: timer pr. ha | B16: =B15/B3 -> 2.39 | C16: =C15/C3 -> 2.44 | D16: 2.54 | E16: 2.7 | F16: 2.833333333 | G16: 3.1 | H16: 3.7 | I16: 5.1 | J16: 6.1
A21: a | B21: 5.9077
A22: b | B22: -0.15
